bitfinex-derivatives/quotes_BTCF0:USTF0_20210705
["timestamp","ask_amount","ask_price","bid_price","bid_amount"]
[1625454878047,3.35799095,34459.0,34458.0,0.24057544]
[1625454878147,7.25939095,34459.0,34458.0,0.24057544]
[1625454878447,6.91820236,34459.0,34458.0,0.24057544]
[1625454879202,3.01680236,34459.0,34458.0,0.24057544]
[1625454879752,2.95780236,34459.0,34458.0,0.24057544]
[1625454880253,2.95780236,34459.0,34458.0,1.62631146]
[1625454881555,2.95780236,34459.0,34458.0,1.82525146]
[1625454882809,2.95780236,34459.0,34458.0,1.88225146]
[1625454882921,2.89880236,34459.0,34458.0,1.88225146]
[1625454883259,2.55667295,34459.0,34458.0,1.88225146]
[1625454883609,2.55667295,34459.0,34458.0,5.53585146]
[1625454883713,2.55667295,34459.0,34458.0,5.7764269]
[1625454883859,1.19236574,34460.0,34458.0,5.7764269]
[1625454884059,1.25136574,34460.0,34458.0,5.7764269]
[1625454885061,0.059,34460.0,34458.0,5.7764269]
[1625454885412,0.059,34460.0,34458.0,5.8354269]
[1625454886011,0.059,34460.0,34458.0,2.1818269]
[1625454887415,0.059,34460.0,34458.0,2.2136269]
[1625454887514,1.19116323,34462.0,34458.0,2.2136269]
[1625454887814,1.60167589,34464.0,34458.0,2.2136269]
[1625454887815,0.34027654,34459.0,34458.0,2.2136269]
[1625454889219,1.19054276,34463.0,34458.0,2.2136269]
[1625454889817,1.19054276,34463.0,34462.0,0.24057544]
[1625454889918,1.19054276,34463.0,34462.0,0.35657544]
[1625454891169,1.19054276,34463.0,34462.0,0.29957544]
[1625454891771,1.19054276,34463.0,34462.0,0.35657544]
[1625454893025,1.43075198,34464.0,34462.0,0.35657544]
[1625454893627,2.2107899,34463.0,34462.0,0.35657544]
[1625454893925,0.24057544,34464.0,34462.0,0.35657544]
[1625454894478,1.0201788,34463.0,34462.0,0.29957544]
[1625454894577,1.0201788,34463.0,34462.0,0.24057544]
[1625454894679,1.0791788,34463.0,34462.0,0.24057544]
[1625454894829,1.1381788,34463.0,34462.0,0.24057544]
[1625454894934,3.68864593,34463.0,34462.0,0.24057544]
[1625454895379,3.62964593,34463.0,34462.0,0.24057544]
[1625454895882,3.70244042,34463.0,34462.0,0.24057544]
[1625454895981,3.64344042,34463.0,34462.0,0.24057544]
[1625454896081,3.70244042,34463.0,34462.0,0.24057544]
[1625454896482,3.70244042,34463.0,34462.0,0.29757544]
[1625454896582,3.64344042,34463.0,34462.0,0.24057544]
[1625454896683,3.62964593,34463.0,34462.0,0.24057544]
[1625454896932,3.6434404,34463.0,34462.0,0.24057544]
[1625454897033,3.5844404,34463.0,34462.0,0.24057544]
[1625454897233,3.57064593,34463.0,34462.0,0.24057544]
[1625454897335,3.62964593,34463.0,34462.0,0.24057544]
[1625454897435,3.57064593,34463.0,34462.0,0.24057544]
[1625454897635,3.58444039,34463.0,34462.0,0.24057544]
[1625454898086,3.64344039,34463.0,34462.0,0.24057544]
[1625454898186,3.58444039,34463.0,34462.0,0.24057544]
[1625454898937,3.57064593,34463.0,34462.0,0.24057544]
[1625454899590,3.57064593,34463.0,34462.0,0.29757544]
[1625454900043,3.57064593,34463.0,34462.0,0.30217582]
[1625454900443,2.21040813,34463.0,34462.0,0.36117582]
[1625454901196,2.26940813,34463.0,34462.0,0.36117582]
[1625454901294,2.21040813,34463.0,34462.0,0.36117582]
[1625454901494,2.21040813,34463.0,34462.0,1.74691184]
[1625454901647,0.24057544,34464.0,34462.0,1.74691184]
[1625454901961,0.24057544,34464.0,34462.0,1.80591184]
[1625454902151,0.24057544,34464.0,34463.0,0.0046001]
[1625454902251,1.43135306,34464.0,34463.0,0.0046001]
[1625454903296,2.4523086,34464.0,34463.0,0.0046001]
[1625454903495,2.4523086,34464.0,34462.0,1.38573602]
[1625454903596,2.7735186,34464.0,34462.0,1.38573602]
[1625454903796,0.24057544,34463.0,34462.0,1.38573602]
[1625454903897,3.81395422,34463.0,34462.0,1.38573602]
[1625454904247,3.81395422,34463.0,34462.0,1.39033624]
[1625454906648,3.81395422,34463.0,34462.0,1.38573602]
[1625454907802,4.19009422,34463.0,34462.0,1.38573602]
[1625454907903,4.24909422,34463.0,34462.0,1.38573602]
[1625454908004,4.26288506,34463.0,34462.0,1.38573602]
[1625454908506,5.79605932,34463.0,34462.0,1.38573602]
[1625454908957,6.29605932,34463.0,34462.0,1.38573602]
[1625454909559,6.29605932,34463.0,34458.0,0.0318]
[1625454909663,6.38245932,34463.0,34458.0,0.0318]
[1625454909811,0.01379151,34462.0,34458.0,0.0318]
[1625454909911,0.74057544,34459.0,34458.0,0.0318]
[1625454910012,0.79957544,34459.0,34458.0,0.0318]
[1625454910312,0.81336689,34459.0,34458.0,0.0318]
[1625454910412,5.92741545,34459.0,34458.0,0.0318]
[1625454910761,5.42741545,34459.0,34458.0,0.0318]
[1625454912215,5.42741545,34459.0,34458.0,0.03640293]
[1625454913266,3.89323497,34459.0,34458.0,0.03640293]
[1625454914469,5.42935733,34459.0,34458.0,0.03640293]
[1625454915219,5.42935733,34459.0,34458.0,0.32246293]
[1625454915424,5.37035733,34459.0,34458.0,0.32246293]
[1625454917229,4.34751353,34459.0,34458.0,0.32246293]
[1625454917628,5.37261121,34459.0,34458.0,0.32246293]
[1625454918231,5.37261121,34459.0,34458.0,0.37946293]
[1625454918331,5.35881976,34459.0,34458.0,0.37946293]
[1625454919083,5.35881976,34459.0,34458.0,0.32246293]
[1625454919734,5.37260916,34459.0,34458.0,0.37946293]
[1625454919936,5.37260916,34459.0,34458.0,0.62003837]
[1625454920090,5.35881976,34459.0,34458.0,0.62003837]
[1625454920485,5.35881976,34459.0,34458.0,0.67903837]
[1625454920587,3.8226974,34459.0,34458.0,0.67903837]
[1625454920937,3.8226974,34459.0,34458.0,0.73803837]
[1625454921587,2.45896248,34459.0,34458.0,0.73803837]
[1625454922187,2.45896248,34459.0,34458.0,0.82127731]
[1625454922188,3.82885,34459.0,34458.0,0.82127731]
[1625454922638,2.45896248,34459.0,34458.0,1.23712887]
[1625454923191,3.14396154,34459.0,34458.0,1.23712887]
[1625454923638,2.9033861,34459.0,34458.0,1.23712887]
[1625454923739,1.14236154,34459.0,34458.0,1.23712887]
[1625454924097,1.14236154,34459.0,34458.0,1.40365793]
[1625454925646,1.14236154,34459.0,34458.0,0.73803837]
[1625454926147,1.37005362,34461.0,34458.0,1.40367756]
[1625454926649,1.37005362,34461.0,34459.0,0.00459944]
[1625454926748,0.24057544,34470.0,34459.0,0.00459944]
[1625454926749,1.37023225,34463.0,34459.0,0.06359944]
[1625454926850,1.37023225,34463.0,34459.0,0.12259944]
[1625454926949,1.37023225,34463.0,34460.0,0.116]
[1625454927049,1.37023225,34463.0,34460.0,0.175]
[1625454927250,1.37023225,34463.0,34461.0,0.00459942]
[1625454927349,1.37023225,34463.0,34462.0,0.58189981]
[1625454927448,1.37023225,34463.0,34462.0,0.75689981]
[1625454927750,1.37023225,34463.0,34462.0,0.76149978]
[1625454927950,1.37023225,34463.0,34462.0,1.24265066]
[1625454928254,1.37023225,34463.0,34462.0,0.91013648]
[1625454928652,1.37023225,34463.0,34462.0,1.24303858]
[1625454929657,1.37023225,34463.0,34462.0,0.74387939]
[1625454930056,1.37023225,34463.0,34462.0,0.66075085]
[1625454932610,1.54096228,34465.0,34462.0,0.80495085]
[1625454932911,1.54096228,34465.0,34463.0,0.00460667]
[1625454933013,1.54096228,34465.0,34463.0,0.12260667]
[1625454933111,1.54096228,34465.0,34464.0,0.116]
[1625454933212,1.54092678,34466.0,34464.0,5.1655]
[1625454933417,1.54092678,34466.0,34464.0,5.17010667]
[1625454933513,1.54092678,34466.0,34464.0,0.17960667]
[1625454933713,1.36956131,34465.0,34464.0,0.175]
[1625454934013,1.36956131,34465.0,34464.0,0.42018208]
[1625454934313,1.36956131,34465.0,34464.0,5.41028208]
[1625454934463,1.36956131,34465.0,34464.0,0.42018208]
[1625454935016,1.36956131,34465.0,34464.0,0.36118208]
[1625454935818,1.54092678,34466.0,34464.0,0.36118208]
[1625454935920,1.54092678,34466.0,34464.0,0.42018208]
[1625454936021,1.54092678,34466.0,34465.0,0.24057544]
[1625454936119,1.54092678,34466.0,34465.0,0.59606203]
[1625454936472,2.9103568,34466.0,34465.0,0.59606203]
[1625454937022,2.9103568,34466.0,34465.0,0.65506203]
[1625454937123,2.9103568,34466.0,34465.0,4.95996203]
[1625454937523,1.36943002,34466.0,34465.0,4.95996203]
[1625454937624,1.36943002,34466.0,34465.0,5.07796203]
[1625454940234,1.06193002,34466.0,34465.0,5.07796203]
[1625454941090,1.54074936,34471.0,34465.0,5.41028361]
[1625454941388,1.54074936,34471.0,34466.0,0.00460578]
[1625454941488,1.54074936,34471.0,34466.0,0.12260578]
[1625454941587,1.54074936,34471.0,34467.0,0.116]
[1625454941692,1.54020587,34472.0,34467.0,0.175]
[1625454941989,1.54020587,34472.0,34468.0,0.0046058]
[1625454942087,1.54020587,34472.0,34471.0,0.06868691]
[1625454942188,1.71132084,34477.0,34471.0,0.18668691]
[1625454942287,1.71132084,34477.0,34472.0,0.057]
[1625454942388,1.71132084,34477.0,34472.0,0.4404]
[1625454942696,1.54030121,34473.0,34472.0,0.4404]
[1625454942990,1.54030121,34473.0,34472.0,0.44500528]
[1625454944000,1.54030121,34473.0,34472.0,0.62658072]
[1625454944090,1.54030121,34473.0,34472.0,0.34218072]
[1625454944292,1.19798281,34473.0,34472.0,0.34218072]
[1625454944742,1.19798281,34473.0,34472.0,4.81648072]
[1625454945545,1.19798281,34473.0,34472.0,4.81187544]
[1625454945646,1.19798281,34473.0,34472.0,0.33757544]
[1625454945745,1.19798281,34473.0,34472.0,0.28057544]
[1625454945946,1.25698281,34473.0,34472.0,0.04]
[1625454946047,1.73813369,34473.0,34472.0,0.04]
[1625454946150,1.79713369,34473.0,34472.0,0.04]
[1625454946550,3.33602145,34473.0,34472.0,0.04]
[1625454948304,3.27702145,34473.0,34472.0,0.04]
[1625454950560,3.21802145,34473.0,34472.0,0.2605]
[1625454950660,3.21802145,34473.0,34472.0,0.3175]
[1625454951014,1.67913369,34473.0,34472.0,0.2605]
[1625454951564,3.21763195,34473.0,34472.0,0.2605]
[1625454951663,3.21763195,34473.0,34472.0,0.26510676]
[1625454951968,1.67913369,34473.0,34472.0,0.26510676]
[1625454952163,1.67913369,34473.0,34472.0,0.32210676]
[1625454952867,1.67913369,34473.0,34472.0,0.26510676]
[1625454952970,1.67913369,34473.0,34472.0,0.04460676]
[1625454953472,2.19194194,34473.0,34472.0,0.04460676]
[1625454953773,2.19194194,34473.0,34472.0,0.10360676]
[1625454953874,3.73004711,34473.0,34472.0,0.10360676]
[1625454954222,2.19194194,34473.0,34472.0,0.10360676]
[1625454954322,2.19194194,34473.0,34472.0,0.04460676]
[1625454954822,2.30994194,34473.0,34472.0,0.04460676]
[1625454954922,2.30994194,34473.0,34472.0,0.04]
[1625454955124,3.8478703,34473.0,34472.0,0.04]
[1625454955224,3.86163821,34473.0,34472.0,0.04]
[1625454955678,5.22882335,34473.0,34472.0,0.04]
[1625454956630,6.25434106,34473.0,34472.0,0.04]
[1625454957183,4.7164127,34473.0,34472.0,0.04]
[1625454958488,4.6574127,34473.0,34472.0,0.04]
[1625454958689,4.5984127,34473.0,34472.0,0.04]
[1625454959138,4.6574127,34473.0,34472.0,0.04]
[1625454959240,4.7164127,34473.0,34472.0,0.04]
[1625454961247,6.42570087,34473.0,34472.0,0.04]
[1625454961746,6.42570087,34473.0,34462.0,0.1442]
[1625454962097,0.48115088,34463.0,34462.0,0.1442]
[1625454962196,4.84611192,34463.0,34462.0,0.1442]
[1625454962447,4.84611192,34463.0,34462.0,0.14880832]
[1625454965725,4.84611192,34463.0,34462.0,0.20580832]
[1625454966109,4.84611192,34463.0,34462.0,4.14950832]
[1625454966213,3.47857188,34463.0,34462.0,4.14950832]
[1625454966311,3.21640188,34463.0,34462.0,4.14950832]
[1625454966715,2.01978298,34463.0,34462.0,4.14950832]
[1625454966912,2.01978298,34463.0,34462.0,0.32380832]
[1625454968015,2.01978298,34463.0,34462.0,0.61068832]
[1625454968717,2.01978298,34463.0,34462.0,0.55168832]
[1625454969219,2.01978298,34463.0,34462.0,0.49268832]
[1625454969320,2.01978298,34463.0,34462.0,0.55168832]
[1625454969419,2.01978298,34463.0,34462.0,0.61068832]
[1625454969718,2.01978298,34463.0,34462.0,0.63432784]
[1625454970167,2.01978298,34463.0,34462.0,0.87490328]
[1625454970268,2.01978298,34463.0,34462.0,0.85126376]
[1625454970819,2.01978298,34463.0,34462.0,0.93391095]
[1625454971018,2.01978298,34463.0,34462.0,0.87491095]
[1625454971119,2.01978298,34463.0,34462.0,0.93391095]
[1625454971369,2.01978298,34463.0,34462.0,1.42995735]
[1625454971469,2.01978298,34463.0,34462.0,1.37095735]
[1625454971574,2.01978298,34463.0,34462.0,1.34731016]
[1625454971773,2.01978298,34463.0,34462.0,1.28831016]
[1625454971871,2.01978298,34463.0,34462.0,1.34731016]
[1625454972172,2.01978298,34463.0,34462.0,1.67789611]
[1625454972571,2.01978298,34463.0,34462.0,1.61889611]
[1625454972675,2.01978298,34463.0,34462.0,1.56189611]
[1625454972773,2.01978298,34463.0,34462.0,1.27501611]
[1625454972924,2.01978298,34463.0,34462.0,1.21601611]
[1625454973226,4.58643269,34463.0,34462.0,0.38938376]
[1625454976488,6.12756132,34463.0,34462.0,0.38938376]
[1625454976889,4.58643269,34463.0,34462.0,0.38938376]
[1625454977187,4.58643269,34463.0,34462.0,0.38477544]
[1625454977288,6.128218,34463.0,34462.0,0.38938296]
[1625454977687,6.187218,34463.0,34462.0,0.38938296]
[1625454983406,6.128218,34463.0,34462.0,0.38938296]
[1625454985665,6.187218,34463.0,34462.0,0.38938296]
[1625454985766,6.128218,34463.0,34462.0,0.38938296]
[1625454986469,6.81370582,34463.0,34462.0,0.38938296]
[1625454989075,6.81370582,34463.0,34462.0,0.69983296]
[1625454989326,5.27192051,34463.0,34462.0,0.69983296]
[1625454989728,5.27192051,34463.0,34462.0,0.75683296]
[1625454990231,5.27192051,34463.0,34462.0,1.00625158]
[1625454990630,5.27192051,34463.0,34462.0,0.8399725]
[1625454991182,5.27192051,34463.0,34462.0,0.7829725]
[1625454991584,5.27192051,34463.0,34462.0,0.69983296]
[1625454992587,6.81379626,34463.0,34462.0,0.69983296]
[1625454993038,5.27192051,34463.0,34462.0,0.69983296]
[1625454995001,5.27192051,34463.0,34462.0,0.38938296]
[1625454995202,5.33092051,34463.0,34462.0,0.14880752]
[1625454995499,5.34470101,34463.0,34462.0,0.14880752]
[1625454995600,5.40370101,34463.0,34462.0,0.14880752]
[1625454995700,9.35720101,34463.0,34462.0,0.14880752]
[1625454995800,9.41620101,34463.0,34462.0,0.14880752]
[1625454996200,10.95821904,34463.0,34462.0,0.14880752]
[1625454996304,10.95821904,34463.0,34462.0,0.1442]
[1625454996702,12.6717627,34463.0,34462.0,0.1442]
[1625454999110,8.6592627,34463.0,34462.0,0.1442]
[1625454999310,6.94571904,34463.0,34462.0,0.1442]
[1625455000213,6.94571904,34463.0,34462.0,0.35968]
[1625455000309,6.88671904,34463.0,34462.0,0.35968]
[1625455000410,6.81393854,34463.0,34462.0,0.36428517]
[1625455000509,6.81393854,34463.0,34462.0,0.42128517]
[1625455000610,6.81393854,34463.0,34462.0,0.48028517]
[1625455000710,6.81393854,34463.0,34462.0,4.06218517]
[1625455000809,6.81393854,34463.0,34462.0,4.00518517]
[1625455000810,5.27192051,34463.0,34462.0,4.00518517]
[1625455000910,5.27192051,34463.0,34462.0,3.94618517]
[1625455001311,5.27192051,34463.0,34462.0,0.36428517]
[1625455002413,6.81309937,34463.0,34462.0,0.36428517]
[1625455003065,5.27192051,34463.0,34462.0,0.36428517]
[1625455003818,5.27192051,34463.0,34462.0,0.14880517]
[1625455004168,6.81394649,34463.0,34462.0,0.14880517]
[1625455007423,6.87294649,34463.0,34462.0,0.14880517]
[1625455012290,6.81394649,34463.0,34462.0,0.20580517]
[1625455012390,6.81394649,34463.0,34462.0,0.43353517]
[1625455013695,5.27192051,34463.0,34462.0,0.51681947]
[1625455014245,5.27192051,34463.0,34462.0,0.93352573]
[1625455014648,5.27192051,34463.0,34462.0,1.01683528]
[1625455016300,5.27192051,34463.0,34462.0,1.07583528]
[1625455017350,5.27192051,34463.0,34462.0,1.32568265]
[1625455017900,5.27192051,34463.0,34462.0,0.99235561]
[1625455022768,5.27192051,34463.0,34462.0,1.65751274]
[1625455024274,5.27192051,34463.0,34462.0,2.65484255]
[1625455024471,5.27192051,34463.0,34462.0,2.89541799]
[1625455025376,3.90305207,34463.0,34462.0,2.89541799]
[1625455026027,5.27461135,34463.0,34462.0,2.89541799]
[1625455026631,5.27461135,34463.0,34462.0,1.89808818]
[1625455027436,5.27461135,34463.0,34462.0,1.83908818]
[1625455027548,5.57397135,34463.0,34462.0,1.83908818]
[1625455027638,5.57397135,34463.0,34462.0,1.61135818]
[1625455028340,5.57397135,34463.0,34462.0,1.02630191]
[1625455028886,5.57397135,34463.0,34462.0,0.52922651]
[1625455029785,7.11727264,34463.0,34462.0,0.44638061]
[1625455035503,6.5773372,34463.0,34462.0,0.82925061]
[1625455035612,5.03403591,34463.0,34462.0,1.32603003]
[1625455035800,5.03403591,34463.0,34462.0,1.38503003]
[1625455036254,2.46469536,34463.0,34462.0,5.6037394]
[1625455036351,2.22411992,34463.0,34462.0,5.6037394]
[1625455036501,2.22411992,34463.0,34462.0,6.08489028]
[1625455036604,2.22411992,34463.0,34462.0,5.99699028]
[1625455036703,0.51460683,34463.0,34462.0,5.99699028]
[1625455036905,0.51460683,34463.0,34462.0,6.03699028]
[1625455037053,0.47390683,34463.0,34462.0,6.03699028]
[1625455037155,0.55978424,34463.0,34462.0,6.03699028]
[1625455037905,0.47390683,34463.0,34462.0,6.03699028]
[1625455038356,0.55974721,34463.0,34462.0,6.03699028]
[1625455038957,0.47390683,34463.0,34462.0,6.03699028]
[1625455040112,0.0858078,34463.0,34462.0,6.03699028]
[1625455041163,0.25724786,34464.0,34462.0,6.03699028]
[1625455041523,0.25724786,34464.0,34463.0,0.0046027]
[1625455041722,0.17144433,34464.0,34463.0,4.75458114]
[1625455041822,0.17144433,34464.0,34463.0,4.81158114]
[1625455042124,0.25722726,34464.0,34463.0,4.81158114]
[1625455042423,0.25722726,34464.0,34463.0,4.85158114]
[1625455043377,0.08578293,34464.0,34463.0,4.85158114]
[1625455044531,0.25713181,34464.0,34463.0,3.52815873]
[1625455044730,0.25713181,34464.0,34463.0,3.46915873]
[1625455045181,0.08578293,34464.0,34463.0,3.46915873]
[1625455045731,0.25712459,34464.0,34463.0,3.46915873]
[1625455045833,0.25712459,34464.0,34463.0,3.52815873]
[1625455046743,1.19841307,34464.0,34463.0,2.37016412]
[1625455048288,0.17130551,34464.0,34463.0,3.52697018]
[1625455048940,0.51357166,34464.0,34463.0,2.37016412]
[1625455049392,0.08572736,34464.0,34463.0,3.52575456]
[1625455049992,1.43870513,34466.0,34463.0,3.52575456]
[1625455049993,0.32628496,34466.0,34463.0,4.84519473]
[1625455050296,0.32628496,34466.0,34464.0,0.00460371]
[1625455050393,0.32628496,34466.0,34464.0,0.12260371]
[1625455050493,0.32628496,34466.0,34465.0,0.057]
[1625455050593,0.08570952,34466.0,34465.0,0.49938]
[1625455050694,0.08570427,34468.0,34465.0,5.11528276]
[1625455050843,0.08570427,34468.0,34465.0,5.11988638]
[1625455051094,0.08570427,34468.0,34467.0,0.04]
[1625455051194,0.08570427,34468.0,34467.0,3.3959894]
[1625455051295,0.08570427,34468.0,34467.0,7.4345894]
[1625455051397,0.08570427,34468.0,34467.0,7.4391929]
[1625455051747,0.08569405,34469.0,34467.0,7.4391929]
[1625455052097,0.08569405,34469.0,34467.0,7.3991929]
[1625455052197,0.08569405,34469.0,34468.0,0.00460345]
[1625455052299,0.17121706,34470.0,34468.0,3.41770548]
[1625455052300,0.08566611,34470.0,34468.0,3.41770548]
[1625455052401,0.08566611,34470.0,34469.0,0.057]
[1625455052498,0.08566611,34470.0,34469.0,0.175]
[1625455052599,0.08566611,34470.0,34469.0,0.65615088]
[1625455052699,0.08566611,34470.0,34469.0,2.80290974]
[1625455052998,0.08566611,34470.0,34469.0,2.84290974]
[1625455053750,0.25679271,34471.0,34469.0,2.84290974]
[1625455054101,0.25679271,34471.0,34470.0,0.0636034]
[1625455054201,0.25679271,34471.0,34470.0,0.1226034]
[1625455054303,0.25679271,34471.0,34470.0,1.33276429]
[1625455054954,0.25679271,34471.0,34470.0,1.37276429]
[1625455056104,0.08563147,34471.0,34470.0,1.37276429]
[1625455057557,0.08563147,34471.0,34470.0,2.3602759]
[1625455058257,0.25665059,34472.0,34470.0,1.37276429]
[1625455058557,0.25665059,34472.0,34471.0,0.00460338]
[1625455058659,0.25665059,34472.0,34471.0,0.12260338]
[1625455058757,0.25665059,34472.0,34471.0,0.17960338]
[1625455058860,0.25665059,34472.0,34471.0,1.32854863]
[1625455059308,0.25665059,34472.0,34471.0,0.65300849]
[1625455059812,2.22229153,34472.0,34471.0,0.16060338]
[1625455060463,2.22229153,34472.0,34471.0,0.21960338]
[1625455060664,2.22229153,34472.0,34471.0,0.16060338]
[1625455060764,2.22229153,34472.0,34471.0,0.40697358]
[1625455060864,1.19668425,34472.0,34471.0,0.40697358]
[1625455061417,1.19668425,34472.0,34471.0,0.16060338]
[1625455061418,2.22228977,34472.0,34471.0,0.16060338]
[1625455064378,3.41874516,34472.0,34471.0,0.16060338]
[1625455065229,2.22228977,34472.0,34471.0,0.16060338]
[1625455069284,2.22228977,34472.0,34471.0,0.21960338]
[1625455069386,2.22228977,34472.0,34471.0,0.47794338]
[1625455069535,2.22228977,34472.0,34471.0,0.7246085]
[1625455070689,1.19668425,34472.0,34471.0,0.64238679]
[1625455070991,1.19668425,34472.0,34471.0,0.97043585]
[1625455072392,0.51288909,34472.0,34471.0,1.62710458]
[1625455072947,1.19701394,34472.0,34471.0,0.97043585]
[1625455075348,0.25683262,34473.0,34471.0,2.609186]
[1625455075752,0.25683262,34473.0,34472.0,0.00460369]
[1625455075848,0.25683262,34473.0,34472.0,0.12260369]
[1625455075949,0.25683262,34473.0,34472.0,2.31001639]
[1625455076453,0.25683262,34473.0,34472.0,2.35001639]
[1625455076551,0.08566787,34473.0,34472.0,2.35001639]
[1625455076802,0.08566787,34473.0,34472.0,2.59059183]
[1625455077003,0.2568059,34473.0,34472.0,2.59059183]
[1625455078456,0.51307214,34474.0,34472.0,2.59059183]
[1625455078457,0.25680999,34474.0,34472.0,2.59059183]
[1625455078806,0.25680999,34474.0,34472.0,2.55059183]
[1625455078906,0.25680999,34474.0,34473.0,0.00460313]
[1625455079007,0.25670508,34477.0,34473.0,3.39346959]
[1625455079106,0.25670508,34477.0,34474.0,0.057]
[1625455079208,0.25670508,34477.0,34474.0,0.175]
[1625455079408,0.25670508,34477.0,34475.0,0.00460313]
[1625455079509,0.25670508,34477.0,34476.0,1.18483451]
[1625455079608,0.25670508,34477.0,34476.0,1.30083451]
[1625455079708,0.25670508,34477.0,34476.0,1.35983451]
[1625455079859,0.25670508,34477.0,34476.0,1.31983451]
[1625455079959,0.25670508,34477.0,34476.0,1.32443774]
[1625455080059,0.17107975,34477.0,34476.0,1.32443774]
[1625455080511,0.25671059,34477.0,34476.0,1.32443774]
[1625455080812,0.25671059,34477.0,34476.0,1.84558862]
[1625455081165,0.25669855,34481.0,34476.0,3.96801364]
[1625455081561,0.25669855,34481.0,34476.0,3.92801364]
[1625455081664,0.25669855,34481.0,34480.0,1.14241353]
[1625455081762,0.25669855,34481.0,34480.0,1.57157353]
[1625455081963,0.25669855,34481.0,34480.0,1.635176]
[1625455082162,0.25669855,34481.0,34480.0,1.675176]
[1625455082563,0.25669855,34481.0,34480.0,1.635176]
[1625455082812,0.25669855,34481.0,34480.0,2.11632688]
[1625455083115,9.855e-05,34481.0,34480.0,2.11632688]
[1625455083214,0.01248293,34482.0,34480.0,2.11632688]
[1625455083617,0.01248293,34482.0,34481.0,0.00460192]
[1625455083720,0.01248293,34482.0,34481.0,0.12260192]
[1625455083818,0.01248293,34482.0,34481.0,0.17960192]
[1625455084120,0.68348332,34486.0,34481.0,1.80956228]
[1625455084220,0.68348332,34486.0,34485.0,4.9317]
[1625455084319,0.68348332,34486.0,34485.0,5.0497]
[1625455084618,0.68348332,34486.0,34485.0,5.05430205]
[1625455084719,1.70865078,34486.0,34485.0,5.05430205]
[1625455084818,1.70865078,34486.0,34485.0,5.29487749]
[1625455085118,1.70865078,34486.0,34485.0,5.35187749]
[1625455085318,1.70865078,34486.0,34485.0,5.39187749]
[1625455085821,0.68348293,34487.0,34485.0,5.39187749]
[1625455086224,0.18308293,34487.0,34486.0,0.00460149]
[1625455086326,0.18308293,34487.0,34486.0,0.06360149]
[1625455086427,0.18308293,34487.0,34486.0,0.12260149]
[1625455086525,0.68299199,34489.0,34486.0,0.17960149]
[1625455086776,0.68299199,34489.0,34488.0,0.48115088]
[1625455086876,1.36581327,34493.0,34488.0,0.48115088]
[1625455086877,1.0243277,34493.0,34488.0,0.87167088]
[1625455086977,1.0243277,34493.0,34488.0,0.97067088]
[1625455087077,1.0243277,34493.0,34488.0,0.97527197]
[1625455087279,1.0243277,34493.0,34489.0,0.00460102]
[1625455087377,1.0243277,34493.0,34489.0,0.12260102]
[1625455087479,1.0243277,34493.0,34490.0,0.057]
[1625455087577,1.0243277,34493.0,34490.0,0.175]
[1625455087881,1.0243277,34493.0,34491.0,0.00460124]
[1625455087980,1.0243277,34493.0,34492.0,0.04]
[1625455088079,1.0243277,34493.0,34492.0,0.156]
[1625455088181,1.0243277,34493.0,34492.0,0.215]
[1625455088380,1.02366498,34495.0,34492.0,0.215]
[1625455088784,1.02366498,34495.0,34492.0,0.175]
[1625455088884,1.19425445,34496.0,34494.0,0.48115088]
[1625455088983,1.19425445,34496.0,34494.0,0.54015088]
[1625455089283,1.0236724,34495.0,34494.0,0.54015088]
[1625455089882,1.0236724,34495.0,34494.0,0.59715088]
[1625455090184,1.02318005,34496.0,34494.0,0.63715088]
[1625455090786,1.02318005,34496.0,34494.0,0.59715088]
[1625455091037,1.02320849,34495.0,34494.0,0.59715088]
[1625455091388,1.02320849,34495.0,34494.0,0.63715088]
[1625455091688,1.02320849,34495.0,34494.0,0.69615088]
[1625455092240,0.56420849,34495.0,34494.0,0.70075198]
[1625455092340,1.02259071,34499.0,34494.0,0.70075198]
[1625455092540,0.91299071,34499.0,34494.0,0.69615088]
[1625455092639,0.91299071,34499.0,34494.0,1.19615088]
[1625455092740,0.91299071,34499.0,34494.0,1.28375088]
[1625455092843,0.91299071,34499.0,34498.0,0.48115088]
[1625455092940,0.91299071,34499.0,34498.0,0.88662088]
[1625455093140,0.41259071,34499.0,34498.0,0.94562088]
[1625455093242,0.9089,34502.0,34498.0,0.94562088]
[1625455093742,0.9089,34502.0,34501.0,0.04]
[1625455093843,0.9089,34502.0,34501.0,0.099]
[1625455093944,0.9089,34502.0,34501.0,0.158]
[1625455094041,0.9089,34502.0,34501.0,0.215]
[1625455094243,0.9089,34502.0,34501.0,5.0845]
[1625455094342,0.9089,34502.0,34501.0,0.215]
[1625455094944,0.9089,34502.0,34501.0,0.45557544]
[1625455095043,0.9089,34502.0,34501.0,0.39657544]
[1625455095144,0.9089,34502.0,34501.0,0.33957544]
[1625455095244,0.9089,34502.0,34501.0,0.28057544]
[1625455095347,0.9679,34502.0,34501.0,0.28057544]
[1625455095694,1.0269,34502.0,34501.0,0.28057544]
[1625455096195,0.9089,34502.0,34501.0,0.28057544]
[1625455096501,2.15979255,34502.0,34501.0,0.28057544]
[1625455096898,2.34136799,34502.0,34501.0,0.28057544]
[1625455097249,2.40036799,34502.0,34501.0,0.28057544]
[1625455097346,2.34136799,34502.0,34501.0,0.28057544]
[1625455097546,2.40036799,34502.0,34501.0,0.28057544]
[1625455098150,2.45936799,34502.0,34501.0,0.28057544]
[1625455098547,2.40036799,34502.0,34501.0,0.28057544]
[1625455098796,2.34136799,34502.0,34501.0,0.28057544]
[1625455099299,2.40036799,34502.0,34501.0,0.28057544]
[1625455099399,2.34136799,34502.0,34501.0,0.28057544]
[1625455099702,1.14947544,34502.0,34501.0,0.28057544]
[1625455100003,2.39948605,34502.0,34501.0,0.28057544]
[1625455100202,2.45848605,34502.0,34501.0,0.28057544]
[1625455100317,2.45848605,34502.0,34501.0,0.04]
[1625455100705,6.88998605,34502.0,34501.0,0.04]
[1625455100907,2.69906149,34502.0,34501.0,0.04]
[1625455101006,5.59184915,34502.0,34501.0,0.04]
[1625455101559,4.06038334,34502.0,34501.0,0.04]
[1625455103762,3.94238334,34502.0,34501.0,0.04]
[1625455104462,1.39005088,34502.0,34501.0,0.04]
[1625455104763,1.44905088,34502.0,34501.0,0.04]
[1625455104962,1.44905088,34502.0,34501.0,0.28057544]
[1625455106166,0.63955738,34505.0,34501.0,0.28057544]
[1625455106568,0.63955738,34505.0,34501.0,0.24057544]
[1625455106818,0.24057544,34506.0,34501.0,0.24057544]
[1625455107017,0.24057544,34506.0,34505.0,0.24057544]
[1625455107318,0.24057544,34506.0,34505.0,0.28057544]
[1625455109571,0.24057544,34506.0,34505.0,0.33957544]
[1625455111982,0.24057544,34506.0,34505.0,0.39857544]
[1625455112583,0.24057544,34506.0,34505.0,0.47067544]
[1625455112681,0.24057544,34506.0,34505.0,0.54277544]
[1625455112782,0.24057544,34506.0,34505.0,0.54738067]
[1625455113084,0.24057544,34506.0,34505.0,0.48838067]